Cogmind - Beta 14 @@@ ROGUE MODE // 2024.08.07 @ 21:22:47 Player: CONM Result: Destroyed by G-47 Trooper with Particle Gun Performance ------------- Evolutions (0) 0 Regions Visited (2) 400 Robots Destroyed (15) 75 Value Destroyed (240) 240 Prototype IDs (2) 40 Alien Tech Used (0) 0 Bonus (0) 0 TOTAL SCORE: 755 Bonus ------- None Cogmind --------- Core Integrity 0/250 Matter 295/300 Energy 250/250 System Corruption 0% Temperature Cool (9) Movement Rolling (95) Ox1 Location -10/Mines Parts ------- > --- POWER (1) -------- Ion Engine > --- PROPULSION (2) --- Wheel Wheel > --- UTILITY (2) ------ Large Storage Unit Signal Interpreter > --- WEAPON (2) ------- Flail > --- INVENTORY (15) --- Small Storage Unit Structural Scanner Visual Processing Unit Plasma Cutter Peak State ------------ > --- POWER ------------ Ion Engine > --- PROPULSION ------- Light Treads Light Treads > --- UTILITY ---------- Large Storage Unit Seismic Detector > --- WEAPON ----------- Particle Gun Particle Gun > --- INVENTORY -------- Ion Engine Wheel Wheel Small Storage Unit Visual Processing Unit Signal Interpreter EM Pulse Gun Particle Gun Plasma Cutter Flail [Rating: 10] Favorites ----------- Power Ion Engine Engine Ion Engine Propulsion Light Treads Treads Light Treads Wheel Wheel Utility Seismic Detector Device Seismic Detector Storage Large Storage Unit Processor Signal Interpreter Weapon EM Pulse Gun Energy Gun EM Pulse Gun Impact Weapon Flail Build | -11 -10 -10 ------- Run | Yrd Mat Min Slots Evolved . | . . . Power . | . . . Propulsion . | . . . Utility . | . . . Weapon . | . . . Parts Attached 20 | 7 6 7 Power 2 | 1 . 1 Engine 2 | 1 . 1 Core . | . . . Reactor . | . . . Propulsion 4 | 2 . 2 Treads 2 | 2 . . Leg . | . . . Wheel 2 | . . 2 Hover . | . . . Flight . | . . . Utility 5 | 2 2 1 Device 1 | 1 . . Storage 3 | 1 2 . Processor 1 | . . 1 Hackware . | . . . Protection . | . . . Artifact . | . . . Weapon 9 | 2 4 3 Energy Gun 7 | 2 3 2 Energy Cannon . | . . . Ballistic Gun . | . . . Ballistic Cannon . | . . . Launcher . | . . . Special Weapon . | . . . Impact Weapon 2 | . 1 1 Slashing Weapon . | . . . Piercing Weapon . | . . . Special Melee Weapon . | . . . Unidentified Prototypes . | . . . Parts Lost 9 | . 2 7 Power 1 | . . 1 Propulsion 2 | . . 2 Utility 1 | . 1 . Weapon 5 | . 1 4 Highest Loss Streak 3 | . 1 3 To Critical Strikes . | . . . Average Slot Usage (%) 96 | . 99 88 Engine 13 | . 14 12 Treads 24 | . 28 16 Wheel 2 | . . 8 Device 9 | . 13 . Storage 14 | . 14 14 Processor 2 | . . 10 Energy Gun 20 | . 22 15 Impact Weapon 6 | . 5 10 Peak Build Rating 10 | 7 10 10 Average Rating 7 | 5 8 8 On Entrance 5 | . 7 9 Naked Turns . | . . . Heaviest Build 50 | 15 50 31 Greatest Support 40 | 40 40 40 Greatest Overweight (x) 1 | . 1 1 Average Overweight (x) . | . . . Largest Inventory Capacity 20 | 8 20 15 Average Capacity 12 | 7 12 15 Most Carried 11 | 4 11 10 Average Carried 6 | 2 7 7 Final Capacity 15 | 8 15 15 Final Carried 10 | 4 10 4 Class Distribution -------------------- 100% | Mutant Dominant Class ---------------- Mutant | -10/Materials Mutant | -10/Mines Resources | -11 -10 -10 ----------- Run | Yrd Mat Min Matter Collected 385 | 255 70 60 Remotely . | . . . Salvage Created 356 | 30 157 169 Parts 27 | 5 8 14 Haulers Intercepted . | . . . Recyclers Shooed . | . . . Parts Field Recycled . | . . . Retrieved Matter . | . . . Parts Self-Destructed . | . . . Prevented . | . . . Kills | -11 -10 -10 ------- Run | Yrd Mat Min Combat Hostiles Destroyed 9 | . 3 6 Melee 1 | . . 1 Guns 7 | . 3 4 Classes Destroyed 6 | 1 4 1 Worker 3 | . 2 1 Builder 1 | . . 1 Tunneler 1 | 1 . . Watcher 1 | . 1 . Swarmer 5 | . 2 3 Grunt 4 | . 1 3 Best Kill Streak 4 | 1 3 4 Combat Bots Only 3 | . 2 3 Max Kills in Single Turn 1 | 1 1 1 Gunslinging . | . . . Exploded . | . . . Melee 1 | . . 1 Uniques/NPCs Destroyed . | . . . Combat | -11 -10 -10 -------- Run | Yrd Mat Min Hostile Shots Fired 140 | . 70 70 Missed 35 | . 18 17 Damage Taken 1070 | . 487 583 Core 267 | . 82 185 Absorbed by Shields . | . . . Core Remaining (%) 100 | 100 . . Volleys Fired 43 | 1 15 27 Largest 2 | 2 2 2 Hottest 130 | 80 130 130 Shots Fired 63 | 2 29 32 Gun 63 | 2 29 32 Cannon . | . . . Launcher . | . . . Special . | . . . Kinetic . | . . . Thermal 41 | . 12 29 Explosive . | . . . Electromagnetic 22 | 2 17 3 Robot Hit Streak 3 | 1 3 3 Robot Miss Streak 3 | . 2 3 Penetration Max . | . . . Secondary Targets 1 | . . 1 Max Gunslinging Chain 1 | . . 1 Shots Hit Robots 36 | 1 16 19 Core Hits 16 | 1 6 9 Critical Kills . | . . . Critical Parts Destroyed 1 | . 1 . Critical Strikes 3 | . 1 2 Burn 2 | . . 2 Smash 1 | . 1 . Melee Attacks 8 | . 1 7 Impact 8 | . 1 7 Slashing . | . . . Piercing . | . . . Sneak Attacks 3 | . 1 2 Combat Hostiles . | . . . Follow-up Attacks . | . . . Damage Inflicted 921 | 12 332 577 Guns 516 | 12 241 263 Cannons . | . . . Explosions 77 | . 32 45 Melee 302 | . 59 243 Ramming 26 | . . 26 Kinetic . | . . . Thermal 422 | . 126 296 Explosive . | . . . Electromagnetic 171 | 12 147 12 Impact 302 | . 59 243 Slashing . | . . . Piercing . | . . . Highest Corruption . | . . . Average Corruption . | . . . Corruption Purged . | . . . Corruption Blocked . | . . . Overload Shots . | . . . Overflow Damage 71 | . 59 12 Projectiles . | . . . Explosions . | . . . Melee 71 | . 59 12 Knockbacks 3 | . 2 1 Impact 2 | . 1 1 Kinetic . | . . . Secondary 1 | . 1 . Self-Inflicted Damage . | . . . Shots . | . . . Rammed 8 | . . 8 Targets Rammed 9 | . . 9 Kicked . | . . . Crushed 1 | . . 1 Highest Temperature 375 | 18 240 375 Average Temperature 107 | 12 86 125 Received Heat Transfer 270 | . 36 234 Siege Activations . | . . . Robots Corrupted 2 | . 1 1 Combat Hostiles 1 | . . 1 Parts Fried 4 | . 2 2 Impact Corruptions 3 | . 2 1 Robots Melted . | . . . Combat Hostiles . | . . . Parts Melted 1 | . . 1 Heat Transferred 1062 | . 272 790 Parts Sabotaged . | . . . Parts Stolen . | . . . Parts Stripped . | . . . Power Chain Reactions 2 | . 1 1 Alert | -11 -10 -10 ------- Run | Yrd Mat Min Peak Influence 172 | 5 147 172 Initial 57 | . 3 57 Average 50 | 1 35 125 Maximum Alert Level . | . . . Low Security (%) 100 | 100 100 100 Level 1 . | . . . Level 2 . | . . . Level 3 . | . . . Level 4 . | . . . Level 5 . | . . . High Security . | . . . Max Security . | . . . Squads Dispatched 1 | . 1 . Investigation 1 | . 1 . Extermination . | . . . Reinforcement . | . . . Assault . | . . . Garrison . | . . . Intercept . | . . . Searches Triggered . | . . . Construction Impeded . | . . . Haulers Reinforced . | . . . Active Scanning Responses . | . . . Cargo Convoy Interrupts . | . . . Stealth | -11 -10 -10 --------- Run | Yrd Mat Min Distress Signals 1 | . 1 . Communications Jammed . | . . . Distress Signals . | . . . Times Spotted 20 | . 13 7 Peak Tracking Total 4 | . 4 3 Tactical Retreats 3 | . 3 . Traps | -11 -10 -10 ------- Run | Yrd Mat Min Traps Triggered 2 | . 2 . Indirectly . | . . . Trap Hack Attempts . | . . . Triggered . | . . . Disarmed . | . . . Reprogrammed . | . . . Reused . | . . . Traps Extracted . | . . . Installed . | . . . Triggered . | . . . Machines | -11 -10 -10 ---------- Run | Yrd Mat Min Machines Disabled 1 | . 1 . Max in Single Turn 1 | . 1 . Machines Repaired . | . . . Machines Dismantled . | . . . Machines Sabotaged . | . . . Overloaded Fab Kills . | . . . Hacking | -11 -10 -10 --------- Run | Yrd Mat Min Machines Accessed 4 | . 4 . Terminals 4 | . 4 . Fabricators . | . . . Repair Stations . | . . . Recycling Units . | . . . Scanalyzers . | . . . Garrison Access . | . . . Total Hacks 12 | . 12 . Successful 4 | . 4 . Failed 8 | . 8 . Catastrophic 1 | . 1 . Database Lockouts . | . . . Manual 7 | . 7 . Terminals 12 | . 12 . Fabricators . | . . . Repair Stations . | . . . Recycling Units . | . . . Scanalyzers . | . . . Garrison Access . | . . . Terminal Hacks 2 | . 2 . Prototype ID Bank 1 | . 1 . Recycling Unit Index 1 | . 1 . Fabricator Hacks . | . . . Repair Station Hacks . | . . . Recycling Unit Hacks . | . . . Scanalyzer . | . . . Garrison Access Hacks . | . . . Unauthorized Hacks 2 | . 2 . Terminals 2 | . 2 . Botnet 2 | . 2 . Fabricators . | . . . Repair Stations . | . . . Recycling Units . | . . . Scanalyzers . | . . . Garrison Access . | . . . Data Cores Recovered . | . . . Used . | . . . Hacking Detections 3 | . 3 . Full Trace Events 1 | . 1 . Feedback Events . | . . . Feedback Blocked . | . . . Robot Schematics Acquired . | . . . Robots Built . | . . . Authchips . | . . . Time . | . . . Total Robot Build Rating . | . . . Part Schematics Acquired . | . . . Parts Built . | . . . Authchips . | . . . Time . | . . . Total Part Build Rating . | . . . Parts Repaired . | . . . Time . | . . . Parts Recycled . | . . . Recycled Matter . | . . . Retrieved Matter . | . . . Retrieved Components . | . . . Parts Scanalyzed . | . . . Part Schematics Acquired . | . . . Parts Damaged . | . . . Bothacking | -11 -10 -10 ------------ Run | Yrd Mat Min Used RIF Installer . | . . . Robots Hacked . | . . . Non-combat . | . . . Combat . | . . . Robot Hacks Applied . | . . . Relay Couplers Released . | . . . Fabnet Peak Effective % . | . . . Robots Rewired . | . . . Allies Hacked . | . . . Hacks Repelled . | . . . Allies | -11 -10 -10 -------- Run | Yrd Mat Min Total Allies . | . . . Largest Group . | . . . Highest-Rated Group . | . . . Highest-Rated Ally . | . . . Total Orders . | . . . Ally Attacks . | . . . Total Damage . | . . . Kills . | . . . Allies Corrupted . | . . . Allies Melted . | . . . Intel | -11 -10 -10 ------- Run | Yrd Mat Min Robot Analysis Total . | . . . Derelict Logs Recovered 1 | . . 1 Drone Launches . | . . . Drone Recoveries . | . . . Exploration | -11 -10 -10 ------------- Run | Yrd Mat Min Turns Passed 938 | 147 579 212 Spaces Moved 476 | 81 307 88 Core 3 | 3 . . Treads 430 | 78 307 45 Legs . | . . . Wheels 43 | . . 43 Hover . | . . . Flight . | . . . Fastest Speed 50 | 50 160 95 Average Speed 156 | 155 164 128 Slowest Speed 240 | 160 240 160 Overloaded Moves . | . . . Propulsion Burnouts . | . . . Robots Hopped . | . . . Cave-ins Triggered . | . . . Exploration Rate (%) 24 | 5 53 15 Regions Visited 2 Branch Regions 1 Pre-discovered Areas . | . . . Known Exits Taken . | . . . Unknown Exits Taken 2 | 1 1 . Scrap Searched . | . . . Spaces Dug . | . . . Terrain Destroyed 4 | . 4 . Melee . | . . . Projectile . | . . . AOE 4 | . 4 . Terrain Rammed . | . . . Walls Destroyed . | . . . Machines Disabled . | . . . Actions | -11 -10 -10 --------- Run | Yrd Mat Min Total 588 | 97 352 139 Wait 9 | 1 8 . Move 474 | 80 306 88 Hop . | . . . Pick Up 18 | 6 11 1 Fast Attach 7 | 7 . . Attach 8 | . 1 7 Detach . | . . . Swap 5 | . 5 . Drop 7 | 2 5 . Fire 43 | 1 15 27 Melee 8 | . 1 7 Ram . | . . . Kick . | . . . Crush 9 | . . 9 Escape Stasis . | . . . Rewire . | . . . Trap . | . . . Miscellaneous . | . . . Route ------- -11/Scrapyard -10/Materials (discovered 3 exits: *Mat / [*Min x2]) -10/Mines (discovered 1 exit: *Mat) History --------- Turn | Location | Event 18 | -11/Scrapyard | Discovered new exit (range 16) 148 | -11/Scrapyard | Entered Materials 148 | -10/Materials | Discovered new exit (range 14) 315 | -10/Materials | Build established: Mutant 433 | -10/Materials | Discovered new exit (range 3) 584 | -10/Materials | Discovered new exit (range 9) 727 | -10/Materials | Entered Mines 859 | -10/Mines | Core integrity fell below 50% 885 | -10/Mines | Lost 3 parts (1p2n) 916 | -10/Mines | Learned Materials stockpile data 925 | -10/Mines | Discovered new exit (range 2) 926 | -10/Mines | Identified exit to Materials 927 | -10/Mines | Core integrity fell below 20% 939 | -10/Mines | Destroyed by G-47 Trooper with Particle Gun Last Messages --------------- 00808_ R-06 Scavenger collects Sml. Matter Pod. 00809_ K-01 Serf collects debris. 00848_ Lgt. Treads destroyed. 00848_ Ion Engine destroyed. 00848_ S-10 Pest destroyed. 00854_ Lgt. Treads destroyed. 00868_ S-10 Pest destroyed. 00874_ Lgt. Ion Engine melted. 00874_ S-10 Pest destroyed. 00905_ Acquired 11 matter. 00906_ Acquired 19 matter. 00916_ Acquired derelict log, extracted data. Data stored: Materials stockpile data. 00918_ Particle Gun destroyed. 00919_ Chain reaction triggered in Lgt. Nuclear Core. 00922_ Critical hit (Burn: +37). 00924_ EM Pulse Gun destroyed. 00925_ EXIT=FOUND 00926_ EXIT=IDENTIFIED: MATERIALS 00927_ G-47 Trooper knocked back. Map ----- +----------------------------------------------------+ | | | | | | | | | | | | | | | | | | | ??????????????????????????????? | | ??????????????????????????????? | | ??????????????????????????????? | | ??????????????????????????????? | | ??????????????????????????????? | | ??????????????????????????????? | | ??????????????###?????????????? | | ???????????#### ##???????????? | | ??????????## #???????????? | | ?????????## ??#????????? | | ?????????# #? #????????? | | ?????????# %## #????????? | | ?????????# ?????????? | | ??????????# #??????????? | | ??#########??# #??????????? | | ??# g #??## #??????????? | | ??# @ #???## #######????? | | ??# #?##### #????? | | ??# #?# % #????? | | ??# < #?# ###* ##### #????? | | ??### ## ##?# #?# #??????????? | | ????#$?# ####%#?# #??????????? | | ????# ?# #?# #??????????? | | ????# ?########?# #??????????? | | ???? ??????????# #??????????? | | ???? ??????????# #??????????? | | ???? ??????????# #??????????? | | ???## ??????????# #??????????? | | ????#???????????# #??????????? | | ????????????????# #??????????? | | ????????????????# #??????????? | | ????????????????# #??????????? | | ????????????????# #??????????? | | ????????????????# #??????????? | | ????????????????# #??????????? | | ????????????????# #??????????? | | ???????????####?# #??????????? | | ??????????## ### ### ##????? | | ??????????# = #????? | | ?????????# %[ #????? | | ?????????# =%% #????? | +----------------------------------------------------+ Best States ------------- Heat Dissipation 25 Energy Generation 10 Energy Capacity 250 Matter Stores 300 Matter Capacity 300 Sight Range 16 Terrain Scan Density 10 Evasion (%) 41 Recoil Reduction 2 Item Schematics ----------------- None Robot Schematics ------------------ None Fabricated ------------ Nothing Alien Tech Used ----------------- None Achievements -------------- None Challenges ------------ None Game ------ Seed ThunderActiveNetwork Manual? 0 Play Time 00:11:53 Cumulative 54.0 hours Start 2024.08.06 @ 20:43:19 End 2024.08.07 @ 21:22:47 Sessions 3 Manual Loads 0 Difficulty Rogue Special Mode None Game No. 78 Rogue 78 Adventurer 0 Explorer 0 Win Type - Total 0 Types 0/0/0/0/0/0/0/0/0 Lore% 18 Gallery% 32 Achievement% 37 Wizard Run 0 Options --------- Layout 0 ASCII 0 Keyboard 0 Movement Arrows Keybinds 0 Fullscreen 2 Font 18/SmallcapsGlow Map View 76x50 Zoom Use 0% Tactical HUD 1 Map Filters NONE Filters NONE Steam 1 RUN: b62fb9f2-001b-4479-acc8-52ec293d45e0